[Event "NOR-chT Eliteserien 2021-22"]
[Site "Norway"]
[Date "2022.03.06"]
[Round "9.29"]
[White "Gandrud, Vegar Koi"]
[Black "Kizatbay, Abyl"]
[Result "1-0"]
[ECO "D85"]
[WhiteElo "2315"]
[BlackElo "2124"]
[Annotator "NA"]
[PlyCount "87"]
[EventDate "2021.10.29"]
[EventType "team-tourn"]
[EventCountry "NOR"]
[SourceTitle "playchess.com"]
[Source "ChessBase"]
[SourceQuality "1"]
[TimeControl "40/5400+30:1800+30"]

1. d4 {[%emt 0:00:04]} Nf6 {[%emt 0:00:07]} 2. c4 {[%emt 0:00:03]} g6 {[%emt 0:00:09]} 3. Nc3 {[%emt 0:00:09]} d5 {[%emt 0:00:06]} 4. cxd5 {[%emt 0:00:03]} Nxd5 {[%emt 0:00:06]} 5. e4 {[%emt 0:00:04]} Nxc3 {[%emt 0:00:05]} 6. bxc3 {[%emt 0:00:03]} Bg7 $14 {[%emt 0:00:05]} 7. Nf3 {[%emt 0:00:07]} c5 {[%emt 0:00:46]} 8. Be3 {[%emt 0:00:08]} O-O {[%emt 0:06:53]} 9. Be2 {[%emt 0:00:46]} Qa5 {[%emt 0:02:54]} 10. O-O {[%emt 0:01:45]} Nc6 {[%emt 0:10:03]} 11. d5 {[%emt 0:20:25]} Ne5 {[%emt 0:02:25]} 12. Nxe5 {[%emt 0:00:39]} Bxe5 {[%emt 0:00:13]} 13. Rc1 {[%emt 0:14:28]} b6 {[%emt 0:13:51]} 14. Qb3 {[%emt 0:14:28]} Ba6 {[%emt 0:12:29]} 15. c4 {[%emt 0:00:05]} Rab8 {[%emt 0:09:38]} 16. Rfd1 {[%emt 0:07:44]} b5 {[%emt 0:11:50]} 17. Bxc5 {[%emt 0:03:11]} bxc4 {[%emt 0:02:43]} 18. Qa3 {[%emt 0:01:42]} Qxa3 {[%emt 0:02:13]} 19. Bxa3 {[%emt 0:00:05]} Bb2 {[%emt 0:03:23]} 20. Bxb2 {[%emt 0:04:58]} Rxb2 {[%emt 0:00:10]} 21. Bxc4 {[%emt 0:00:02]} Bxc4 {[%emt 0:02:12]} 22. Rxc4 {[%emt 0:00:02]} Rxa2 {[%emt 0:00:50]} 23. Rb1 {[%emt 0:02:06]} Kg7 {[%emt 0:11:14]} 24. g3 {[%emt 0:00:24]} Kf6 {[%emt 0:01:13]} 25. Rb7 {[%emt 0:08:12]} a5 {[%emt 0:02:22]} 26. Rcc7 {[%emt 0:02:19]} e6 {[%emt 0:00:42]} 27. d6 {[%emt 0:02:21]} Rd2 {[%emt 0:03:17]} 28. f4 {[%emt 0:01:23]} e5 {[%emt 0:00:23]} 29. Re7 {[%emt 0:04:28]} exf4 {[%emt 0:00:11]} 30. gxf4 {[%emt 0:00:01]} a4 {[%emt 0:00:43]} 31. Ra7 {[%emt 0:04:07]} a3 {[%emt 0:00:09]} 32. e5+ {[%emt 0:03:52]} Kf5 {[%emt 0:00:55]} 33. Rxa3 {[%emt 0:01:32]} Rb8 {[%emt 0:00:20]} 34. Rxf7+ {[%emt 0:01:04]} Ke4 {[%emt 0:00:11]} 35. Ra4+ {[%emt 0:00:33]} Kf3 {[%emt 0:01:01]} 36. Ra3+ {[%emt 0:00:20]} Ke4 {[%emt 0:00:15]} 37. Ra1 {[%emt 0:00:59]} Rbb2 {[%emt 0:00:10]} 38. Rxh7 {[%emt 0:00:05]} Kxf4 {[%emt 0:02:05]} 39. Re1 {[%emt 0:00:59]} Rg2+ {[%emt 0:00:58]} 40. Kh1 {[%emt 0:00:06]} Rge2 {[%emt 0:00:38]} 41. Rxe2 {[%emt 0:31:10]} Rxe2 {[%emt 0:01:50]} 42. d7 {[%emt 0:00:00]} Rd2 {[%emt 0:02:42]} 43. e6 {[%emt 0:00:00]} Kf5 {[%emt 0:00:47]} 44. Rh8 {[%emt 0:00:00]} 1-0

[Event "NOR-chT Eliteserien 2021-22"]
[Site "Norway"]
[Date "2022.03.06"]
[Round "9.30"]
[White "Fossan, Aleksander"]
[Black "Nilssen, Ellen Fredericia"]
[Result "0-1"]
[ECO "B22"]
[WhiteElo "2128"]
[BlackElo "2110"]
[Annotator "ChessBase"]
[PlyCount "82"]
[EventDate "2021.10.29"]
[EventType "team-tourn"]
[EventCountry "NOR"]
[SourceTitle "playchess.com"]
[Source "ChessBase"]
[SourceQuality "1"]
[TimeControl "40/5400+30:1800+30"]

1. e4 {[%emt 0:00:04]} c5 {[%emt 0:00:09]} 2. c3 {[%emt 0:00:09]} Nf6 {[%emt 0:00:16]} 3. e5 {[%emt 0:00:11]} Nd5 {[%emt 0:00:16]} 4. d4 {[%emt 0:00:06]} cxd4 {[%emt 0:00:23]} 5. Nf3 {[%emt 0:01:25]} Nc6 {[%emt 0:00:42]} 6. Bc4 {[%emt 0:00:14]} Nb6 {[%emt 0:00:18]} 7. Bb3 {[%emt 0:00:07]} d6 {[%emt 0:00:09]} 8. exd6 {[%emt 0:00:05]} Qxd6 {[%emt 0:00:11]} 9. O-O {[%emt 0:00:10]} Be6 {[%emt 0:00:20]} 10. Na3 {[%emt 0:02:46]} dxc3 {[%emt 0:00:37]} 11. Qe2 {[%emt 0:01:50]} Bxb3 {[%emt 0:02:09]} 12. Nb5 {[%emt 0:00:45]} Qb8 {[%emt 0:00:13]} 13. axb3 {[%emt 0:00:16]} g6 {[%emt 0:00:50]} 14. Rd1 {[%emt 0:10:46]} Bg7 {[%emt 0:20:08]} 15. Nd6+ {[%emt 1:19:06]} Kf8 {[%emt 1:11:19]} 16. Ne4 {[%emt 0:16:53]} cxb2 {[%emt 0:17:03]} 17. Bxb2 {[%emt 0:00:21]} Bxb2 {[%emt 0:01:27]} 18. Qxb2 {[%emt 0:00:10]} Kg8 {[%emt 0:01:17]} 19. h4 {[%emt 0:19:15]} Qf4 {[%emt 0:04:31]} 20. Nc5 {[%emt 0:01:44]} Qf6 {[%emt 0:02:38]} 21. Qxf6 {[%emt 0:00:15]} exf6 {[%emt 0:46:49]} 22. Nxb7 {[%emt 0:01:14]} Kg7 {[%emt 0:02:11]} 23. Na5 {[%emt 0:18:23]} Rhc8 {[%emt 0:07:02]} 24. Rd6 {[%emt 0:05:42]} Nb4 {[%emt 0:03:35]} 25. Nd4 {[%emt 0:02:46]} Nc2 {[%emt 0:05:01]} 26. Nxc2 {[%emt 0:03:48]} Rxc2 {[%emt 0:00:02]} 27. Re1 {[%emt 0:00:15]} Rac8 {[%emt 0:05:37]} 28. g3 {[%emt 0:08:00]} R8c5 {[%emt 0:04:36]} 29. Nb7 {[%emt 0:03:01]} Rf5 {[%emt 0:01:48]} 30. Rf1 {[%emt 0:00:23]} Rb2 {[%emt 0:10:05]} 31. Rd3 {[%emt 0:00:05]} Rb5 {[%emt 0:00:21]} 32. Nd6 {[%emt 0:01:18]} R5xb3 {[%emt 0:02:06]} 33. Rxb3 {[%emt 0:00:01]} Rxb3 {[%emt 0:00:09]} 34. Ra1 {[%emt 0:00:01]} Rd3 {[%emt 0:02:20]} 35. Nb5 {[%emt 0:00:01]} Rd7 {[%emt 0:01:45]} 36. Rxa7 {[%emt 0:00:18]} Rxa7 {[%emt 0:00:05]} 37. Nxa7 {[%emt 0:00:03]} f5 {[%emt 0:00:26]} 38. Kg2 {[%emt 0:00:12]} Nd5 {[%emt 0:00:41]} 39. Nc6 {[%emt 0:00:20]} f6 {[%emt 0:03:14]} 40. Nd4 {[%emt 0:00:59]} Kf7 {[%emt 0:05:10]} 41. h5 {[%emt 0:03:42]} Ke7 {[%emt 0:06:01]} 0-1